[Event "*** MasterClass Titled Tuesday Blitz"]
[Site "Chess.com"]
[Date "2017.12.05"]
[Round "7"]
[White "jefferyx"]
[Black "robbykevlishvili"]
[Result "1-0"]
[WhiteElo "2790"]
[BlackElo "2440"]
[TimeControl "180+2"]
[EndTime "15:44:44 PST"]
[Termination "jefferyx won by resignation"]

1. d4 {[%clk 0:02:55.4]} 1... d5 {[%clk 0:03:00.1]} 2. c4 {[%clk 0:02:55.2]}
2... c6 {[%clk 0:03:01.6]} 3. Nf3 {[%clk 0:02:56.5]} 3... Nf6 {[%clk 0:03:02.5]}
4. Nc3 {[%clk 0:02:57.9]} 4... e6 {[%clk 0:03:03]} 5. Bg5 {[%clk 0:02:57]} 5...
h6 {[%clk 0:03:03.4]} 6. Bxf6 {[%clk 0:02:57.5]} 6... Qxf6 {[%clk 0:03:05.3]} 7.
e3 {[%clk 0:02:55.1]} 7... Nd7 {[%clk 0:03:05.9]} 8. Rc1 {[%clk 0:02:52.7]} 8...
g6 {[%clk 0:03:06.3]} 9. Bd3 {[%clk 0:02:51.5]} 9... Bg7 {[%clk 0:03:06.1]} 10.
cxd5 {[%clk 0:02:52.8]} 10... exd5 {[%clk 0:03:06.8]} 11. b4 {[%clk 0:02:54.3]}
11... a6 {[%clk 0:02:57.1]} 12. a4 {[%clk 0:02:55]} 12... Qd6 {[%clk 0:02:57.3]}
13. Qb3 {[%clk 0:02:55.1]} 13... O-O {[%clk 0:02:50.8]} 14. O-O {[%clk
0:02:55.8]} 14... Nf6 {[%clk 0:02:32.3]} 15. a5 {[%clk 0:02:56.7]} 15... Be6
{[%clk 0:02:30.1]} 16. Na4 {[%clk 0:02:57.5]} 16... Rae8 {[%clk 0:02:31.5]} 17.
Nc5 {[%clk 0:02:56.5]} 17... Bc8 {[%clk 0:02:33]} 18. Ne5 {[%clk 0:02:57]} 18...
Qe7 {[%clk 0:02:23.7]} 19. h3 {[%clk 0:02:48]} 19... Nh5 {[%clk 0:02:18.1]} 20.
f4 {[%clk 0:02:37]} 20... Ng3 {[%clk 0:02:18.5]} 21. Rfe1 {[%clk 0:02:19.6]}
21... Bf5 {[%clk 0:02:13.1]} 22. b5 {[%clk 0:01:41.9]} 22... axb5 {[%clk
0:01:59.1]} 23. a6 {[%clk 0:01:43]} 23... Bxe5 {[%clk 0:01:59]} 24. fxe5 {[%clk
0:01:43.5]} 24... b6 {[%clk 0:01:47.6]} 25. Nb7 {[%clk 0:01:43.5]} 25... Bxd3
{[%clk 0:01:27.3]} 26. Qxd3 {[%clk 0:01:44.3]} 26... Qd7 {[%clk 0:01:25.6]} 27.
Qc2 {[%clk 0:01:29.8]} 27... Re6 {[%clk 0:01:18.9]} 28. Nd6 {[%clk 0:01:30.8]}
28... c5 {[%clk 0:01:15.7]} 29. dxc5 {[%clk 0:01:32.7]} 29... bxc5 {[%clk
0:01:15.3]} 30. Qxc5 {[%clk 0:01:34.6]} 30... Rxe5 {[%clk 0:01:15.9]} 31. Nxb5
{[%clk 0:01:26.1]} 31... Ne4 {[%clk 0:01:13.4]} 32. Qc7 {[%clk 0:01:22.3]} 32...
Qf5 {[%clk 0:01:01.5]} 33. Rc2 {[%clk 0:01:16.8]} 33... Ree8 {[%clk 0:00:38.2]}
34. a7 {[%clk 0:01:14.9]} 34... Rc8 {[%clk 0:00:31.7]} 35. Qxc8 {[%clk
0:01:15.8]} 35... Rxc8 {[%clk 0:00:32.6]} 36. Rxc8+ {[%clk 0:01:17.7]} 36...
Qxc8 {[%clk 0:00:33.7]} 37. Nc7 {[%clk 0:01:19.6]} 37... Qxc7 {[%clk 0:00:33.6]}
38. a8=Q+ {[%clk 0:01:21.5]} 38... Kg7 {[%clk 0:00:34.4]} 39. Qxd5 {[%clk
0:01:22.5]} 39... Nf6 {[%clk 0:00:34.3]} 40. Qd4 {[%clk 0:01:23.6]} 40... Qe7
{[%clk 0:00:34.6]} 41. Rf1 {[%clk 0:01:24.6]} 41... Qe6 {[%clk 0:00:36.1]} 42.
Rf3 {[%clk 0:01:25.4]} 42... h5 {[%clk 0:00:36]} 43. e4 {[%clk 0:01:20.5]} 43...
h4 {[%clk 0:00:29.7]} 44. Rf4 {[%clk 0:01:19.6]} 44... g5 {[%clk 0:00:27.8]} 45.
Rf5 {[%clk 0:01:19.3]} 45... Kg6 {[%clk 0:00:29.3]} 46. Re5 {[%clk 0:01:08.1]}
46... Qc6 {[%clk 0:00:29.8]} 47. Qe3 {[%clk 0:00:52.4]} 47... Nh7 {[%clk
0:00:29.9]} 48. Rd5 {[%clk 0:00:49.5]} 48... Qe6 {[%clk 0:00:26.7]} 49. Qd4
{[%clk 0:00:50.5]} 49... Qe7 {[%clk 0:00:18.6]} 50. Rd6+ {[%clk 0:00:50.9]}
50... f6 {[%clk 0:00:17.5]} 51. e5 {[%clk 0:00:52.3]} 51... Kf5 {[%clk 0:00:17]}
52. Qd3+ {[%clk 0:00:47.4]} 52... Kxe5 {[%clk 0:00:17.4]} 53. Qd5+ {[%clk
0:00:46.5]} 53... Kf4 {[%clk 0:00:18.4]} 54. Qf3+ {[%clk 0:00:47.6]} 54... Ke5
{[%clk 0:00:19.6]} 55. Rd5+ {[%clk 0:00:48.6]} 55... Ke6 {[%clk 0:00:20.9]} 56.
Qf5+ {[%clk 0:00:50.5]} 56... Kf7 {[%clk 0:00:21.1]} 57. Qxh7+ {[%clk
0:00:49.6]} 1-0

[Event "*** MasterClass Titled Tuesday Blitz"]
[Site "Chess.com"]
[Date "2017.12.05"]
[Round "7"]
[White "northridgehawk"]
[Black "RookSacrifice_OLD"]
[Result "0-1"]
[WhiteElo "1958"]
[BlackElo "1853"]
[TimeControl "180+2"]
[EndTime "15:45:12 PST"]
[Termination "RookSacrifice_OLD won by resignation"]

1. e4 {[%clk 0:02:29.8]} 1... c6 {[%clk 0:02:59.9]} 2. d4 {[%clk 0:02:28.4]}
2... d5 {[%clk 0:03:01.8]} 3. exd5 {[%clk 0:02:26.8]} 3... cxd5 {[%clk
0:03:01.9]} 4. Bd3 {[%clk 0:02:28.2]} 4... Nc6 {[%clk 0:03:03.3]} 5. c3 {[%clk
0:02:28.4]} 5... Qc7 {[%clk 0:03:04.7]} 6. f4 {[%clk 0:02:26.4]} 6... Nh6 {[%clk
0:03:03.3]} 7. h3 {[%clk 0:02:21.7]} 7... Bf5 {[%clk 0:03:01.7]} 8. Nf3 {[%clk
0:02:17.7]} 8... e6 {[%clk 0:02:59.4]} 9. O-O {[%clk 0:02:16.1]} 9... Bd6 {[%clk
0:02:50.7]} 10. Ne5 {[%clk 0:02:15]} 10... O-O {[%clk 0:02:43.4]} 11. Na3 {[%clk
0:02:07.3]} 11... a6 {[%clk 0:02:41.8]} 12. Nc2 {[%clk 0:01:59]} 12... Bxd3
{[%clk 0:02:40.9]} 13. Nxd3 {[%clk 0:01:52.3]} 13... Nf5 {[%clk 0:02:33.8]} 14.
Qe1 {[%clk 0:01:39.9]} 14... Be7 {[%clk 0:02:29.7]} 15. Ne3 {[%clk 0:01:27.1]}
15... Nd6 {[%clk 0:02:06.3]} 16. Nf2 {[%clk 0:01:12.2]} 16... f5 {[%clk
0:02:03.7]} 17. Nd3 {[%clk 0:01:09.5]} 17... Ne4 {[%clk 0:02:02.4]} 18. Ne5
{[%clk 0:01:09.7]} 18... b5 {[%clk 0:01:51.7]} 19. a4 {[%clk 0:01:07]} 19...
Nxe5 {[%clk 0:01:40.6]} 20. fxe5 {[%clk 0:01:06.6]} 20... b4 {[%clk 0:01:27.5]}
21. Bd2 {[%clk 0:01:00.8]} 21... bxc3 {[%clk 0:01:23.7]} 22. Bxc3 {[%clk
0:00:57.7]} 22... Qd8 {[%clk 0:01:17.6]} 23. Bb4 {[%clk 0:00:51.8]} 23... Bh4
{[%clk 0:01:16.7]} 24. Qd1 {[%clk 0:00:43.2]} 24... Rf7 {[%clk 0:01:12.7]} 25.
Qh5 {[%clk 0:00:40.8]} 25... Rb8 {[%clk 0:00:56.7]} 26. Ba3 {[%clk 0:00:27.8]}
26... Bg5 {[%clk 0:00:47.9]} 27. Qe2 {[%clk 0:00:26.3]} 27... Ng3 {[%clk
0:00:48.4]} 28. Qd3 {[%clk 0:00:26.8]} 28... Nxf1 {[%clk 0:00:49.3]} 29. Rxf1
{[%clk 0:00:28.6]} 29... Be7 {[%clk 0:00:48.7]} 30. Bxe7 {[%clk 0:00:28]} 30...
Qxe7 {[%clk 0:00:50.1]} 31. Nd1 {[%clk 0:00:29.2]} 31... Qb7 {[%clk 0:00:49.4]}
32. Rf3 {[%clk 0:00:28.5]} 32... Rc7 {[%clk 0:00:47.8]} 33. Qf1 {[%clk
0:00:28.6]} 33... Rc1 {[%clk 0:00:47.6]} 34. Kh2 {[%clk 0:00:29.2]} 34... Qb4
{[%clk 0:00:43.6]} 35. Rd3 {[%clk 0:00:30.2]} 35... Qxa4 {[%clk 0:00:37.5]} 36.
Qf3 {[%clk 0:00:31.6]} 36... Rbc8 {[%clk 0:00:27.3]} 37. Nc3 {[%clk 0:00:31.2]}
37... Qd7 {[%clk 0:00:26]} 38. Qf4 {[%clk 0:00:30.8]} 38... Ra1 {[%clk
0:00:25.1]} 39. Rg3 {[%clk 0:00:31.7]} 39... Ra5 {[%clk 0:00:24.5]} 40. Qg5
{[%clk 0:00:29.7]} 40... Kh8 {[%clk 0:00:23.4]} 41. Ne2 {[%clk 0:00:30.7]} 41...
Rb5 {[%clk 0:00:24.3]} 42. Nf4 {[%clk 0:00:31.6]} 42... Rxb2 {[%clk 0:00:25]}
43. Qh5 {[%clk 0:00:32.4]} 43... Qe8 {[%clk 0:00:21.6]} 44. Qh4 {[%clk
0:00:30.3]} 44... Rcc2 {[%clk 0:00:20.6]} 45. Qg5 {[%clk 0:00:29.5]} 45... Qf8
{[%clk 0:00:12.4]} 46. Nxe6 {[%clk 0:00:30.3]} 46... Qg8 {[%clk 0:00:11]} 47.
Nxg7 {[%clk 0:00:30.5]} 47... Rxg2+ {[%clk 0:00:09.5]} 48. Rxg2 {[%clk
0:00:30.6]} 48... Rxg2+ {[%clk 0:00:11.4]} 49. Kxg2 {[%clk 0:00:31.7]} 49...
Qxg7 {[%clk 0:00:13.3]} 50. Qxg7+ {[%clk 0:00:30.5]} 50... Kxg7 {[%clk
0:00:15.2]} 51. Kf3 {[%clk 0:00:31.6]} 51... Kf7 {[%clk 0:00:15.1]} 52. Ke3
{[%clk 0:00:32.1]} 52... Ke6 {[%clk 0:00:16.4]} 53. h4 {[%clk 0:00:33.5]} 53...
h5 {[%clk 0:00:16.7]} 54. Kf4 {[%clk 0:00:33.9]} 54... a5 {[%clk 0:00:17.6]} 55.
Ke3 {[%clk 0:00:35]} 55... a4 {[%clk 0:00:19.5]} 56. Kd3 {[%clk 0:00:36.2]}
56... f4 {[%clk 0:00:19.9]} 57. Ke2 {[%clk 0:00:36.5]} 57... a3 {[%clk 0:00:21]}
58. Kf3 {[%clk 0:00:38.4]} 58... a2 {[%clk 0:00:22.8]} 59. Kxf4 {[%clk
0:00:40.3]} 59... a1=Q {[%clk 0:00:24.1]} 60. Kg5 {[%clk 0:00:41.7]} 60... Qf1
{[%clk 0:00:25.6]} 61. Kxh5 {[%clk 0:00:43.6]} 61... Qf5+ {[%clk 0:00:26.9]} 62.
Kh6 {[%clk 0:00:44.7]} 62... Qe4 {[%clk 0:00:28.8]} 63. h5 {[%clk 0:00:46.3]}
63... Qxd4 {[%clk 0:00:30.7]} 64. Kg7 {[%clk 0:00:47.5]} 64... Qe3 {[%clk
0:00:32.5]} 65. h6 {[%clk 0:00:48.9]} 65... Qxe5+ {[%clk 0:00:33.5]} 66. Kg6
{[%clk 0:00:49.5]} 66... d4 {[%clk 0:00:35.4]} 67. h7 {[%clk 0:00:50.2]} 67...
Qh8 {[%clk 0:00:36.6]} 68. Kg5 {[%clk 0:00:50]} 68... d3 {[%clk 0:00:38.5]} 69.
Kf4 {[%clk 0:00:51.7]} 69... d2 {[%clk 0:00:40.4]} 70. Ke3 {[%clk 0:00:53.3]}
70... d1=Q {[%clk 0:00:42.3]} 71. Kf2 {[%clk 0:00:54.3]} 71... Qxh7 {[%clk
0:00:43.7]} 72. Kg3 {[%clk 0:00:56.2]} 72... Qhd3+ {[%clk 0:00:44.8]} 73. Kh4
{[%clk 0:00:58.1]} 0-1

[Event "*** MasterClass Titled Tuesday Blitz"]
[Site "Chess.com"]
[Date "2017.12.05"]
[Round "7"]
[White "AbdAlAgathos"]
[Black "QuintilianoR"]
[Result "1-0"]
[WhiteElo "2315"]
[BlackElo "2492"]
[TimeControl "180+2"]
[EndTime "15:45:27 PST"]
[Termination "AbdAlAgathos won by resignation"]

1. e4 {[%clk 0:03:01.9]} 1... c5 {[%clk 0:02:51.3]} 2. Nf3 {[%clk 0:03:02.9]}
2... d6 {[%clk 0:02:52.5]} 3. c3 {[%clk 0:03:04.1]} 3... Nf6 {[%clk 0:02:53.5]}
4. Be2 {[%clk 0:03:05.2]} 4... Nc6 {[%clk 0:02:54.7]} 5. d4 {[%clk 0:03:05.7]}
5... cxd4 {[%clk 0:02:55.8]} 6. cxd4 {[%clk 0:03:07.6]} 6... Nxe4 {[%clk
0:02:48.7]} 7. d5 {[%clk 0:03:08.5]} 7... Qa5+ {[%clk 0:02:49.7]} 8. Nc3 {[%clk
0:03:09.9]} 8... Nxc3 {[%clk 0:02:48.2]} 9. bxc3 {[%clk 0:03:11.8]} 9... Ne5
{[%clk 0:02:48.4]} 10. Nxe5 {[%clk 0:03:12.6]} 10... Qxc3+ {[%clk 0:02:50]} 11.
Bd2 {[%clk 0:03:13.4]} 11... Qxe5 {[%clk 0:02:51.6]} 12. O-O {[%clk 0:03:14.4]}
12... g6 {[%clk 0:02:50]} 13. Rc1 {[%clk 0:03:14.2]} 13... Bg7 {[%clk 0:02:48]}
14. Bb5+ {[%clk 0:02:43.5]} 14... Kf8 {[%clk 0:02:47.2]} 15. Re1 {[%clk
0:02:33.6]} 15... Qxd5 {[%clk 0:02:39.1]} 16. Rc7 {[%clk 0:01:49.7]} 16... Qxb5
{[%clk 0:01:59.5]} 17. Rexe7 {[%clk 0:01:44.4]} 17... Be6 {[%clk 0:01:59.4]} 18.
Qf3 {[%clk 0:01:18.5]} 18... Qb1+ {[%clk 0:01:19]} 19. Bc1 {[%clk 0:01:18.6]}
19... Qxc1+ {[%clk 0:00:54.1]} 20. Rxc1 {[%clk 0:01:16.6]} 20... Kxe7 {[%clk
0:00:56]} 21. Qxb7+ {[%clk 0:01:05.3]} 21... Kf6 {[%clk 0:00:56.2]} 22. Qb2+
{[%clk 0:01:06.7]} 22... Kf5 {[%clk 0:00:55.1]} 23. Qxg7 {[%clk 0:01:07.3]}
23... Rac8 {[%clk 0:00:57]} 24. Rxc8 {[%clk 0:00:31.7]} 24... Rxc8 {[%clk
0:00:57.2]} 25. h3 {[%clk 0:00:33.6]} 25... h5 {[%clk 0:00:58]} 26. Qd4 {[%clk
0:00:33.7]} 26... a5 {[%clk 0:00:32.4]} 27. h4 {[%clk 0:00:28.5]} 27... Bxa2
{[%clk 0:00:21.3]} 28. Qxd6 {[%clk 0:00:26.7]} 28... Be6 {[%clk 0:00:21.2]} 29.
Qd4 {[%clk 0:00:23.1]} 29... Rc4 {[%clk 0:00:22.1]} 30. Qd3+ {[%clk 0:00:21.3]}
30... Kf6 {[%clk 0:00:23.7]} 31. Qd8+ {[%clk 0:00:14.2]} 31... Kg7 {[%clk
0:00:24.2]} 32. Qxa5 {[%clk 0:00:15]} 32... Rxh4 {[%clk 0:00:25.2]} 33. Qe5+
{[%clk 0:00:16]} 33... Kh7 {[%clk 0:00:26.4]} 34. Qf6 {[%clk 0:00:16.1]} 34...
Rc4 {[%clk 0:00:27]} 35. f3 {[%clk 0:00:16.5]} 35... Rc1+ {[%clk 0:00:26.6]} 36.
Kf2 {[%clk 0:00:17.7]} 36... Rc5 {[%clk 0:00:28.5]} 37. Kg3 {[%clk 0:00:18.6]}
37... Rf5 {[%clk 0:00:28.8]} 38. Qe7 {[%clk 0:00:19.7]} 38... Kg7 {[%clk
0:00:29.9]} 39. Kh4 {[%clk 0:00:20.9]} 39... Rf4+ {[%clk 0:00:30.8]} 40. Kg3
{[%clk 0:00:21.7]} 40... Rf5 {[%clk 0:00:32.3]} 41. Qe8 {[%clk 0:00:22.7]} 41...
Rf6 {[%clk 0:00:32.9]} 42. Qe7 {[%clk 0:00:23.6]} 42... Rf5 {[%clk 0:00:34.2]}
43. Qd8 {[%clk 0:00:24.2]} 43... g5 {[%clk 0:00:35.3]} 44. Qe7 {[%clk
0:00:24.6]} 44... h4+ {[%clk 0:00:36.4]} 45. Kf2 {[%clk 0:00:25.9]} 45... Kg6
{[%clk 0:00:37]} 46. Ke3 {[%clk 0:00:26.8]} 46... Re5+ {[%clk 0:00:36.8]} 47.
Kd4 {[%clk 0:00:27.3]} 47... Rd5+ {[%clk 0:00:38]} 48. Ke4 {[%clk 0:00:27.3]}
48... Rd7 {[%clk 0:00:38.2]} 49. Qf8 {[%clk 0:00:28.4]} 49... Kh7 {[%clk
0:00:34.1]} 50. Qc5 {[%clk 0:00:27.2]} 50... Rd5 {[%clk 0:00:34.9]} 51. Qe7
{[%clk 0:00:23.4]} 51... Kg6 {[%clk 0:00:35.8]} 52. Qf8 {[%clk 0:00:24.1]} 52...
Rb5 {[%clk 0:00:22.3]} 53. Qg8+ {[%clk 0:00:22.2]} 53... Kh6 {[%clk 0:00:23.4]}
54. Qh8+ {[%clk 0:00:20.9]} 54... Kg6 {[%clk 0:00:24.5]} 55. Qg8+ {[%clk
0:00:22.3]} 55... Kh6 {[%clk 0:00:25.8]} 56. Qh8+ {[%clk 0:00:23.5]} 56... Kg6
{[%clk 0:00:27.2]} 57. Qg8+ {[%clk 0:00:24.4]} 57... Kf6 {[%clk 0:00:28.4]} 58.
Qd8+ {[%clk 0:00:24.1]} 58... Kg7 {[%clk 0:00:28.4]} 59. Qe7 {[%clk 0:00:24.4]}
59... Rb4+ {[%clk 0:00:27.2]} 60. Qxb4 {[%clk 0:00:24.3]} 1-0

[Event "*** MasterClass Titled Tuesday Blitz"]
[Site "Chess.com"]
[Date "2017.12.05"]
[Round "7"]
[White "FMJoseHerrera"]
[Black "jcibarra"]
[Result "0-1"]
[WhiteElo "2448"]
[BlackElo "2673"]
[TimeControl "180+2"]
[EndTime "15:45:44 PST"]
[Termination "jcibarra won by resignation"]

1. Nf3 {[%clk 0:02:59.7]} 1... Nf6 {[%clk 0:03:00.6]} 2. g3 {[%clk 0:03:01.6]}
2... g6 {[%clk 0:02:58.3]} 3. h4 {[%clk 0:03:02.2]} 3... Bg7 {[%clk 0:02:58.4]}
4. d3 {[%clk 0:03:02.6]} 4... O-O {[%clk 0:02:59.5]} 5. Nc3 {[%clk 0:03:02.4]}
5... d5 {[%clk 0:03:00.6]} 6. Bg5 {[%clk 0:03:00]} 6... d4 {[%clk 0:02:55.1]} 7.
Nb1 {[%clk 0:02:50]} 7... h6 {[%clk 0:02:52.1]} 8. Bf4 {[%clk 0:02:45.1]} 8...
Nd5 {[%clk 0:02:51.1]} 9. Bc1 {[%clk 0:02:41.3]} 9... c5 {[%clk 0:02:50.2]} 10.
Bg2 {[%clk 0:02:41.6]} 10... Nc6 {[%clk 0:02:49.9]} 11. O-O {[%clk 0:02:22.9]}
11... f5 {[%clk 0:02:36.5]} 12. c3 {[%clk 0:01:58]} 12... Kh7 {[%clk 0:02:19.9]}
13. Qb3 {[%clk 0:01:31.2]} 13... Nc7 {[%clk 0:01:54.3]} 14. cxd4 {[%clk
0:01:10.4]} 14... cxd4 {[%clk 0:01:56.2]} 15. Na3 {[%clk 0:00:49.8]} 15... Be6
{[%clk 0:01:48.5]} 16. Qxb7 {[%clk 0:00:43.3]} 16... Bd5 {[%clk 0:01:48.5]} 17.
Nb5 {[%clk 0:00:37.7]} 17... Ne6 {[%clk 0:01:37.9]} 18. Qa6 {[%clk 0:00:31.6]}
18... Rb8 {[%clk 0:01:35.3]} 19. Nxa7 {[%clk 0:00:29.3]} 19... Nb4 {[%clk
0:01:20.8]} 20. Qa4 {[%clk 0:00:23.7]} 20... Nc5 {[%clk 0:01:19.7]} 21. Qd1
{[%clk 0:00:20.1]} 21... Rb7 {[%clk 0:00:55.8]} 22. Bd2 {[%clk 0:00:20]} 22...
Nxa2 {[%clk 0:00:45.2]} 23. b4 {[%clk 0:00:19.7]} 23... Ne6 {[%clk 0:00:41.7]}
24. Rxa2 {[%clk 0:00:19.3]} 24... Bxa2 {[%clk 0:00:39.2]} 25. Ng5+ {[%clk
0:00:20.9]} 25... hxg5 {[%clk 0:00:40.7]} 26. Bxb7 {[%clk 0:00:22.8]} 26... Qc7
{[%clk 0:00:36.8]} 27. Qa4 {[%clk 0:00:21.4]} 27... Qxb7 {[%clk 0:00:25.1]} 28.
Qxa2 {[%clk 0:00:22.3]} 28... Nc7 {[%clk 0:00:23.7]} 29. b5 {[%clk 0:00:18.8]}
29... Ra8 {[%clk 0:00:22.8]} 30. Ra1 {[%clk 0:00:14.2]} 30... gxh4 {[%clk
0:00:20.6]} 31. b6 {[%clk 0:00:12.7]} 31... Qxb6 {[%clk 0:00:21.4]} 32. Qa5
{[%clk 0:00:13.2]} 32... Qxa5 {[%clk 0:00:19.2]} 33. Rxa5 {[%clk 0:00:15.1]}
33... hxg3 {[%clk 0:00:20.7]} 34. fxg3 {[%clk 0:00:17]} 34... Bf6 {[%clk
0:00:18.9]} 35. Nc6 {[%clk 0:00:18.5]} 35... Rc8 {[%clk 0:00:17.5]} 36. Ne5
{[%clk 0:00:18.3]} 36... Kg7 {[%clk 0:00:17.8]} 37. Nf3 {[%clk 0:00:19.8]} 37...
Ne6 {[%clk 0:00:18.3]} 38. Kf2 {[%clk 0:00:21]} 38... Kf7 {[%clk 0:00:19.7]} 39.
Ra7 {[%clk 0:00:22.2]} 39... g5 {[%clk 0:00:20.1]} 40. Ra6 {[%clk 0:00:22.4]}
40... Rc2 {[%clk 0:00:20.3]} 41. Be1 {[%clk 0:00:19.8]} 41... g4 {[%clk
0:00:20.6]} 42. Nh4 {[%clk 0:00:20.3]} 42... Bxh4 {[%clk 0:00:21.9]} 43. gxh4
{[%clk 0:00:22.2]} 43... Nf4 {[%clk 0:00:23.3]} 44. h5 {[%clk 0:00:21.8]} 44...
Nxh5 {[%clk 0:00:19.5]} 45. Ra5 {[%clk 0:00:22.3]} 45... e6 {[%clk 0:00:19.5]}
46. Re5 {[%clk 0:00:23.1]} 46... Nf4 {[%clk 0:00:20.3]} 47. Kg3 {[%clk
0:00:22.1]} 47... Nxe2+ {[%clk 0:00:19.1]} 48. Kh4 {[%clk 0:00:23.7]} 48... Kf6
{[%clk 0:00:19.2]} 49. Ra5 {[%clk 0:00:24]} 49... Nf4 {[%clk 0:00:20.3]} 50. Bg3
{[%clk 0:00:23.9]} 50... Nxd3 {[%clk 0:00:19]} 51. Ra8 {[%clk 0:00:23.4]} 51...
Rc1 {[%clk 0:00:18.1]} 52. Rf8+ {[%clk 0:00:23.1]} 52... Kg6 {[%clk 0:00:19.5]}
53. Rg8+ {[%clk 0:00:22.2]} 53... Kf7 {[%clk 0:00:20]} 54. Rd8 {[%clk
0:00:22.9]} 54... Nc5 {[%clk 0:00:21]} 55. Rxd4 {[%clk 0:00:23.1]} 55... Ne4
{[%clk 0:00:20.4]} 56. Rxe4 {[%clk 0:00:18.2]} 56... fxe4 {[%clk 0:00:21.2]} 57.
Kxg4 {[%clk 0:00:20.1]} 57... Rf1 {[%clk 0:00:22.1]} 58. Bf4 {[%clk 0:00:19.7]}
58... e5 {[%clk 0:00:23.2]} 59. Be3 {[%clk 0:00:19.6]} 59... Ke6 {[%clk
0:00:23.9]} 60. Kg3 {[%clk 0:00:21]} 60... Rf3+ {[%clk 0:00:25]} 61. Kg2 {[%clk
0:00:22.9]} 61... Rxe3 {[%clk 0:00:26.6]} 0-1

[Event "*** MasterClass Titled Tuesday Blitz"]
[Site "Chess.com"]
[Date "2017.12.05"]
[Round "7"]
[White "Bryakin_Mikhail"]
[Black "Marcin"]
[Result "1/2-1/2"]
[WhiteElo "2541"]
[BlackElo "2227"]
[TimeControl "180+2"]
[EndTime "15:45:57 PST"]
[Termination "Game drawn by agreement"]

1. d4 {[%clk 0:03:00.8]} 1... Nf6 {[%clk 0:03:00.3]} 2. c4 {[%clk 0:03:01.7]}
2... c5 {[%clk 0:03:01]} 3. Nf3 {[%clk 0:03:00.8]} 3... cxd4 {[%clk 0:03:01.6]}
4. Nxd4 {[%clk 0:03:02.7]} 4... e6 {[%clk 0:03:02.7]} 5. g3 {[%clk 0:03:01.5]}
5... Nc6 {[%clk 0:03:04]} 6. Bg2 {[%clk 0:03:02.6]} 6... Be7 {[%clk 0:03:05.4]}
7. O-O {[%clk 0:03:03.6]} 7... O-O {[%clk 0:03:06.9]} 8. Nc3 {[%clk 0:03:04.5]}
8... a6 {[%clk 0:03:08.4]} 9. b3 {[%clk 0:03:05.1]} 9... Qc7 {[%clk 0:03:09.8]}
10. Bb2 {[%clk 0:03:05.9]} 10... d6 {[%clk 0:03:06.7]} 11. Rc1 {[%clk
0:03:01.9]} 11... Bd7 {[%clk 0:03:07.8]} 12. Re1 {[%clk 0:03:01.6]} 12... Qb8
{[%clk 0:02:55.8]} 13. e4 {[%clk 0:03:00.1]} 13... Qa7 {[%clk 0:02:55.7]} 14.
Nce2 {[%clk 0:02:53.2]} 14... Rac8 {[%clk 0:02:51.2]} 15. Nxc6 {[%clk
0:02:45.4]} 15... Bxc6 {[%clk 0:02:50.5]} 16. Nd4 {[%clk 0:02:45.5]} 16... Rfd8
{[%clk 0:02:49.1]} 17. Nxc6 {[%clk 0:02:45.9]} 17... Rxc6 {[%clk 0:02:38.1]} 18.
Qe2 {[%clk 0:02:34.7]} 18... Rcc8 {[%clk 0:02:37]} 19. e5 {[%clk 0:02:34.8]}
19... dxe5 {[%clk 0:02:37.8]} 20. Bxe5 {[%clk 0:02:35.7]} 20... Rd7 {[%clk
0:02:34.7]} 21. Red1 {[%clk 0:02:35.9]} 21... Rcd8 {[%clk 0:02:35.8]} 22. Rxd7
{[%clk 0:02:36.6]} 22... Rxd7 {[%clk 0:02:36.5]} 23. Rd1 {[%clk 0:02:37.9]}
23... b5 {[%clk 0:02:32.3]} 24. Rxd7 {[%clk 0:02:29.7]} 24... Qxd7 {[%clk
0:02:32.8]} 25. Bf1 {[%clk 0:02:24.5]} 25... b4 {[%clk 0:02:28]} 26. Qd3 {[%clk
0:02:23.3]} 26... Qxd3 {[%clk 0:02:21.5]} 27. Bxd3 {[%clk 0:02:25.2]} 27... Bc5
{[%clk 0:02:23]} 28. h3 {[%clk 0:02:22.3]} 28... Kf8 {[%clk 0:02:23]} 29. Kg2
{[%clk 0:02:23.2]} 29... Ke7 {[%clk 0:02:21.4]} 30. f4 {[%clk 0:02:23.7]} 30...
g6 {[%clk 0:02:22]} 31. Kf3 {[%clk 0:02:23.7]} 31... Nd7 {[%clk 0:02:22.4]} 32.
Bb2 {[%clk 0:02:22.4]} 32... a5 {[%clk 0:02:23.9]} 33. Be4 {[%clk 0:02:22.7]}
33... Kd6 {[%clk 0:02:24.1]} 34. g4 {[%clk 0:02:20.2]} 34... Bg1 {[%clk
0:01:25.8]} 35. h4 {[%clk 0:02:16.8]} 35... Nc5 {[%clk 0:01:18.9]} 36. Bc2
{[%clk 0:02:17.5]} 36... Nd7 {[%clk 0:01:16.8]} 37. h5 {[%clk 0:02:15.9]} 37...
Kc5 {[%clk 0:01:12.8]} 38. h6 {[%clk 0:02:04.9]} 38... Bd4 {[%clk 0:01:08]} 39.
Bc1 {[%clk 0:02:06.1]} 39... Bf6 {[%clk 0:00:51.1]} 40. Be3+ {[%clk 0:02:03.2]}
40... Bd4 {[%clk 0:00:51.5]} 41. Bd2 {[%clk 0:02:04.5]} 41... Bf6 {[%clk
0:00:50.5]} 42. Ke4 {[%clk 0:02:05.7]} 42... Bd4 {[%clk 0:00:37.4]} 43. f5
{[%clk 0:01:58.2]} 43... e5 {[%clk 0:00:05.8]} 44. Bg5 {[%clk 0:01:48.4]} 44...
f6 {[%clk 0:00:06.5]} 45. fxg6 {[%clk 0:01:18.6]} 45... fxg5 {[%clk 0:00:07.5]}
46. g7 {[%clk 0:01:19.6]} 46... Nf6+ {[%clk 0:00:08.5]} 47. Kf5 {[%clk
0:01:21.1]} 47... Ng8 {[%clk 0:00:09.8]} 48. Be4 {[%clk 0:01:00]} 48... Be3
{[%clk 0:00:07.5]} 49. Kxe5 {[%clk 0:00:55.6]} 49... Nxh6 {[%clk 0:00:08.4]} 50.
Kf6 {[%clk 0:00:36.5]} 50... Bd4+ {[%clk 0:00:09.3]} 51. Kxg5 {[%clk 0:00:37.8]}
51... Bxg7 {[%clk 0:00:10.6]} 52. Bxh7 {[%clk 0:00:39]} 52... Bf8 {[%clk
0:00:09.2]} 53. Kf4 {[%clk 0:00:33.4]} 53... Be7 {[%clk 0:00:07.5]} 54. Bg6
{[%clk 0:00:27.1]} 54... Ng8 {[%clk 0:00:07.6]} 55. g5 {[%clk 0:00:26.5]} 55...
Kd6 {[%clk 0:00:09]} 56. Bf7 {[%clk 0:00:27.1]} 56... Nf6 {[%clk 0:00:08.5]} 57.
gxf6 {[%clk 0:00:25.7]} 57... Bxf6 {[%clk 0:00:09.8]} 58. Ke4 {[%clk 0:00:27.2]}
58... Kc5 {[%clk 0:00:10.6]} 59. Kf5 {[%clk 0:00:28]} 59... Bc3 {[%clk
0:00:11.4]} 60. Ke6 {[%clk 0:00:29.9]} 60... Bd4 {[%clk 0:00:11.2]} 61. Kd7
{[%clk 0:00:31.1]} 61... Kb6 {[%clk 0:00:12.6]} 62. Kd6 {[%clk 0:00:31.6]} 62...
Bc5+ {[%clk 0:00:13.9]} 63. Kd5 {[%clk 0:00:33.1]} 63... Bg1 {[%clk 0:00:15.5]}
64. Be8 {[%clk 0:00:34.6]} 64... Bc5 {[%clk 0:00:17.4]} 65. Ba4 {[%clk
0:00:35.8]} 65... Bg1 {[%clk 0:00:18.7]} 66. Ke6 {[%clk 0:00:37.2]} 66... Bc5
{[%clk 0:00:19.6]} 67. Kd7 {[%clk 0:00:39.1]} 67... Bd4 {[%clk 0:00:20.8]} 68.
Kc8 {[%clk 0:00:41]} 68... Bc5 {[%clk 0:00:22.2]} 69. Kb8 {[%clk 0:00:42.9]}
69... Bd4 {[%clk 0:00:23.6]} 70. Ka8 {[%clk 0:00:44.8]} 70... Bc5 {[%clk
0:00:25]} 1/2-1/2